[Event "*** Titled Tuesday Blitz"]
[Site "Chess.com"]
[Date "2019.04.02"]
[Round "5"]
[White "beatles_22"]
[Black "Alexander_Donchenko"]
[Result "1-0"]
[WhiteElo "2656"]
[BlackElo "2830"]
[TimeControl "180+2"]
[EndTime "15:04:24 PDT"]
[Termination "beatles_22 won by resignation"]

1. e4 {[%clk 0:03:01.9]} 1... c6 {[%clk 0:03:01.2]} 2. d4 {[%clk 0:02:59.7]}
2... d5 {[%clk 0:03:03.1]} 3. Nc3 {[%clk 0:03:01.2]} 3... dxe4 {[%clk
0:03:04.3]} 4. Nxe4 {[%clk 0:02:48.9]} 4... Nf6 {[%clk 0:03:05.4]} 5. Nxf6+
{[%clk 0:02:49.2]} 5... exf6 {[%clk 0:03:07.3]} 6. c3 {[%clk 0:02:50.6]} 6...
Bd6 {[%clk 0:03:08.4]} 7. Nf3 {[%clk 0:02:51.3]} 7... O-O {[%clk 0:03:08]} 8.
Be2 {[%clk 0:02:43.9]} 8... Re8 {[%clk 0:03:08.3]} 9. O-O {[%clk 0:02:41.6]}
9... Bf5 {[%clk 0:03:08.4]} 10. Bd3 {[%clk 0:02:41.5]} 10... Bxd3 {[%clk
0:03:08.5]} 11. Qxd3 {[%clk 0:02:43.4]} 11... Nd7 {[%clk 0:03:09.1]} 12. Bd2
{[%clk 0:02:42]} 12... Nf8 {[%clk 0:03:09.5]} 13. Rfe1 {[%clk 0:02:42.2]} 13...
Qb6 {[%clk 0:03:09.8]} 14. b3 {[%clk 0:02:41.5]} 14... Ng6 {[%clk 0:03:08.9]}
15. g3 {[%clk 0:02:40.6]} 15... Ne7 {[%clk 0:03:06.9]} 16. Re2 {[%clk
0:02:25.9]} 16... Ng6 {[%clk 0:03:00.3]} 17. Rae1 {[%clk 0:02:24.2]} 17... Rxe2
{[%clk 0:03:00.8]} 18. Rxe2 {[%clk 0:02:25.7]} 18... Bf8 {[%clk 0:02:55.3]} 19.
h4 {[%clk 0:02:24.5]} 19... Ne7 {[%clk 0:02:52.7]} 20. c4 {[%clk 0:02:10.2]}
20... a5 {[%clk 0:02:51.7]} 21. a4 {[%clk 0:02:07.1]} 21... Rd8 {[%clk
0:02:48.5]} 22. Be3 {[%clk 0:02:05.5]} 22... Qc7 {[%clk 0:02:45.8]} 23. Nd2
{[%clk 0:02:03.6]} 23... Qd7 {[%clk 0:02:43.7]} 24. Ne4 {[%clk 0:02:02.2]} 24...
Nf5 {[%clk 0:02:42.9]} 25. Rd2 {[%clk 0:01:40.8]} 25... Re8 {[%clk 0:02:37.9]}
26. Bf4 {[%clk 0:01:31.8]} 26... Bb4 {[%clk 0:02:35.2]} 27. Rd1 {[%clk
0:01:31.2]} 27... h5 {[%clk 0:02:16]} 28. d5 {[%clk 0:01:22.7]} 28... cxd5
{[%clk 0:02:12.1]} 29. Qxd5 {[%clk 0:01:24]} 29... Qxd5 {[%clk 0:02:00.5]} 30.
Rxd5 {[%clk 0:01:25.9]} 30... Rxe4 {[%clk 0:02:00.7]} 31. Rxf5 {[%clk
0:01:26.6]} 31... Re1+ {[%clk 0:01:59.2]} 32. Kg2 {[%clk 0:01:26.7]} 32... Rb1
{[%clk 0:02:00.7]} 33. Rxh5 {[%clk 0:01:19.2]} 33... Rxb3 {[%clk 0:02:01.3]} 34.
Bc7 {[%clk 0:01:19.9]} 34... Rc3 {[%clk 0:00:54.2]} 35. Bxa5 {[%clk 0:01:19.5]}
35... Rxc4 {[%clk 0:00:53.5]} 36. Bxb4 {[%clk 0:01:17.9]} 36... Rxb4 {[%clk
0:00:55.4]} 37. Rb5 {[%clk 0:01:18]} 37... Rxb5 {[%clk 0:00:33.3]} 38. axb5
{[%clk 0:01:19.9]} 38... Kf8 {[%clk 0:00:35]} 39. g4 {[%clk 0:01:19.8]} 39...
Ke7 {[%clk 0:00:29.9]} 40. Kg3 {[%clk 0:01:14.5]} 40... Kd6 {[%clk 0:00:26]} 41.
h5 {[%clk 0:01:15.3]} 41... Ke5 {[%clk 0:00:19.3]} 42. f4+ {[%clk 0:01:15.1]}
42... Ke4 {[%clk 0:00:20.1]} 43. b6 {[%clk 0:01:11.6]} 43... Kd5 {[%clk
0:00:11.3]} 44. g5 {[%clk 0:01:06.9]} 44... fxg5 {[%clk 0:00:12.4]} 45. fxg5
{[%clk 0:01:08.3]} 45... Ke5 {[%clk 0:00:12.3]} 46. Kg4 {[%clk 0:01:08]} 46...
Ke6 {[%clk 0:00:10.5]} 47. Kf4 {[%clk 0:01:03.7]} 47... f6 {[%clk 0:00:09.6]}
48. g6 {[%clk 0:00:53.6]} 48... Ke7 {[%clk 0:00:04.5]} 49. Kf5 {[%clk
0:00:54.5]} 49... Kf8 {[%clk 0:00:04.7]} 50. Ke6 {[%clk 0:00:55.4]} 50... Kg8
{[%clk 0:00:03.4]} 51. Kd6 {[%clk 0:00:56.3]} 51... Kf8 {[%clk 0:00:02.9]} 52.
Kc7 {[%clk 0:00:54.9]} 52... f5 {[%clk 0:00:04.6]} 53. Kxb7 {[%clk 0:00:56.2]}
53... f4 {[%clk 0:00:06.5]} 54. Ka7 {[%clk 0:00:53.3]} 54... f3 {[%clk
0:00:08.4]} 55. b7 {[%clk 0:00:54.8]} 1-0

[Event "*** Titled Tuesday Blitz"]
[Site "Chess.com"]
[Date "2019.04.02"]
[Round "5"]
[White "Lennis93"]
[Black "Walter_White_Poland"]
[Result "1-0"]
[WhiteElo "2368"]
[BlackElo "2256"]
[TimeControl "180+2"]
[EndTime "15:04:45 PDT"]
[Termination "Lennis93 won by checkmate"]

1. d4 {[%clk 0:03:01.9]} 1... Nf6 {[%clk 0:03:00]} 2. Nf3 {[%clk 0:03:02.9]}
2... c5 {[%clk 0:03:00.4]} 3. dxc5 {[%clk 0:03:02.2]} 3... e6 {[%clk 0:03:01.1]}
4. e3 {[%clk 0:02:47.5]} 4... Bxc5 {[%clk 0:03:00]} 5. c4 {[%clk 0:02:48.6]}
5... O-O {[%clk 0:02:56.6]} 6. a3 {[%clk 0:02:49.7]} 6... d5 {[%clk 0:02:56.3]}
7. Nc3 {[%clk 0:02:49.3]} 7... dxc4 {[%clk 0:02:54.5]} 8. Qxd8 {[%clk 0:02:49]}
8... Rxd8 {[%clk 0:02:55.2]} 9. Bxc4 {[%clk 0:02:50.4]} 9... a6 {[%clk
0:02:54.7]} 10. b4 {[%clk 0:02:51.4]} 10... Be7 {[%clk 0:02:53.6]} 11. Bb2
{[%clk 0:02:52.2]} 11... b5 {[%clk 0:02:53]} 12. Be2 {[%clk 0:02:52.9]} 12...
Bb7 {[%clk 0:02:52]} 13. O-O {[%clk 0:02:48]} 13... Nbd7 {[%clk 0:02:41.8]} 14.
Rfc1 {[%clk 0:02:38.7]} 14... Nb6 {[%clk 0:02:30.5]} 15. Nd4 {[%clk 0:02:28.5]}
15... Rac8 {[%clk 0:02:24.2]} 16. f3 {[%clk 0:02:28.5]} 16... Nc4 {[%clk
0:02:19.5]} 17. Bxc4 {[%clk 0:02:27.1]} 17... Rxc4 {[%clk 0:02:19.8]} 18. Nce2
{[%clk 0:02:28.1]} 18... Rdc8 {[%clk 0:02:06]} 19. Kf2 {[%clk 0:02:28.5]} 19...
g6 {[%clk 0:01:58.9]} 20. Nb3 {[%clk 0:02:21.7]} 20... Rc2 {[%clk 0:01:45.9]}
21. Bd4 {[%clk 0:02:22.5]} 21... Rxc1 {[%clk 0:01:29.3]} 22. Rxc1 {[%clk
0:02:21.9]} 22... Rxc1 {[%clk 0:01:29.9]} 23. Nexc1 {[%clk 0:02:22.9]} 23... Nd7
{[%clk 0:01:19]} 24. e4 {[%clk 0:02:22.1]} 24... f5 {[%clk 0:01:13.9]} 25. exf5
{[%clk 0:02:08.5]} 25... gxf5 {[%clk 0:01:04.6]} 26. Nd3 {[%clk 0:02:08.5]}
26... Bd5 {[%clk 0:00:39.7]} 27. Na5 {[%clk 0:02:08.5]} 27... Bd6 {[%clk
0:00:33.2]} 28. f4 {[%clk 0:02:03.7]} 28... Kf7 {[%clk 0:00:30.5]} 29. g3 {[%clk
0:02:02.4]} 29... Be4 {[%clk 0:00:18.5]} 30. Nc5 {[%clk 0:02:01.7]} 30... Nxc5
{[%clk 0:00:16.9]} 31. bxc5 {[%clk 0:02:02.7]} 31... Bc7 {[%clk 0:00:17]} 32.
Nb3 {[%clk 0:02:00.1]} 32... a5 {[%clk 0:00:17.1]} 33. Be5 {[%clk 0:01:57.2]}
33... Bd8 {[%clk 0:00:11.6]} 34. Ke3 {[%clk 0:01:51.3]} 34... Bd5 {[%clk
0:00:11.4]} 35. Nd4 {[%clk 0:01:46.3]} 35... Ke8 {[%clk 0:00:10.1]} 36. Nxb5
{[%clk 0:01:45.8]} 36... Kd7 {[%clk 0:00:09.2]} 37. Nd4 {[%clk 0:01:42.6]} 37...
Be7 {[%clk 0:00:09]} 38. Bd6 {[%clk 0:01:26.7]} 38... Bxd6 {[%clk 0:00:09.6]}
39. cxd6 {[%clk 0:01:27.1]} 39... Kxd6 {[%clk 0:00:10.8]} 40. h4 {[%clk
0:01:26.4]} 40... Kc5 {[%clk 0:00:11.7]} 41. Kd3 {[%clk 0:01:26.9]} 41... Be4+
{[%clk 0:00:09.7]} 42. Kc3 {[%clk 0:01:28]} 42... Bd5 {[%clk 0:00:10.7]} 43. h5
{[%clk 0:01:11.1]} 43... h6 {[%clk 0:00:11.5]} 44. Kd3 {[%clk 0:01:07.5]} 44...
Ba2 {[%clk 0:00:10.4]} 45. Nf3 {[%clk 0:01:07.7]} 45... Kb5 {[%clk 0:00:09.1]}
46. Kc3 {[%clk 0:01:07.7]} 46... Ka4 {[%clk 0:00:09.3]} 47. Kb2 {[%clk
0:01:07.9]} 47... Bb3 {[%clk 0:00:08.5]} 48. Ng5 {[%clk 0:00:51.4]} 48... Bd1
{[%clk 0:00:09.3]} 49. Nxe6 {[%clk 0:00:51.5]} 49... Bxh5 {[%clk 0:00:10.1]} 50.
Nd4 {[%clk 0:00:40.2]} 50... Bg4 {[%clk 0:00:11]} 51. Nc2 {[%clk 0:00:33.5]}
51... Bf3 {[%clk 0:00:09.5]} 52. Ne3 {[%clk 0:00:33.9]} 52... Be4 {[%clk
0:00:10]} 53. Nd1 {[%clk 0:00:33.4]} 53... Bd3 {[%clk 0:00:10.4]} 54. Nc3#
{[%clk 0:00:34.1]} 1-0

[Event "*** Titled Tuesday Blitz"]
[Site "Chess.com"]
[Date "2019.04.02"]
[Round "5"]
[White "nubair1198"]
[Black "wonderfultime"]
[Result "0-1"]
[WhiteElo "2663"]
[BlackElo "2907"]
[TimeControl "180+2"]
[EndTime "15:04:57 PDT"]
[Termination "wonderfultime won by resignation"]

1. d4 {[%clk 0:03:01.9]} 1... d5 {[%clk 0:02:50.1]} 2. c4 {[%clk 0:03:03.3]}
2... c6 {[%clk 0:02:50.2]} 3. Nf3 {[%clk 0:03:04.8]} 3... Nf6 {[%clk 0:02:51.3]}
4. Nc3 {[%clk 0:03:06.4]} 4... a6 {[%clk 0:02:52.3]} 5. a4 {[%clk 0:03:07]} 5...
Bf5 {[%clk 0:02:49.8]} 6. Qb3 {[%clk 0:03:06.2]} 6... Ra7 {[%clk 0:02:50.4]} 7.
a5 {[%clk 0:03:06.6]} 7... dxc4 {[%clk 0:02:31.7]} 8. Qxc4 {[%clk 0:03:06.3]}
8... Nbd7 {[%clk 0:02:32.9]} 9. Bf4 {[%clk 0:03:02.7]} 9... e6 {[%clk
0:02:31.8]} 10. e3 {[%clk 0:03:03.4]} 10... Nd5 {[%clk 0:02:32.9]} 11. Bg3
{[%clk 0:02:59.5]} 11... Nb4 {[%clk 0:02:32.6]} 12. e4 {[%clk 0:02:37.1]} 12...
Bg6 {[%clk 0:00:42.2]} 13. Bh4 {[%clk 0:02:32.9]} 13... Qc7 {[%clk 0:00:30.5]}
14. Bg3 {[%clk 0:02:33.7]} 14... Qd8 {[%clk 0:00:31.2]} 15. Ra4 {[%clk
0:02:20.6]} 15... b5 {[%clk 0:00:31]} 16. axb6 {[%clk 0:02:15.8]} 16... Nxb6
{[%clk 0:00:32.3]} 17. Qb3 {[%clk 0:02:14.7]} 17... Nxa4 {[%clk 0:00:33.6]} 18.
Qxa4 {[%clk 0:02:16.6]} 18... Be7 {[%clk 0:00:31.4]} 19. Bc4 {[%clk 0:02:13.7]}
19... O-O {[%clk 0:00:32.3]} 20. O-O {[%clk 0:02:15.3]} 20... a5 {[%clk
0:00:33.8]} 21. Rd1 {[%clk 0:02:14.6]} 21... Qb6 {[%clk 0:00:31.6]} 22. Ne5
{[%clk 0:02:12.1]} 22... Rd8 {[%clk 0:00:32.6]} 23. Nxg6 {[%clk 0:02:10]} 23...
hxg6 {[%clk 0:00:34.5]} 24. Ne2 {[%clk 0:02:11]} 24... Bf6 {[%clk 0:00:32.8]}
25. e5 {[%clk 0:01:40.8]} 25... Be7 {[%clk 0:00:33.7]} 26. Qb3 {[%clk
0:01:42.2]} 26... c5 {[%clk 0:00:31.9]} 27. h4 {[%clk 0:01:38.5]} 27... cxd4
{[%clk 0:00:31.2]} 28. Nf4 {[%clk 0:01:35.8]} 28... Rb7 {[%clk 0:00:19.2]} 29.
Qf3 {[%clk 0:01:15.7]} 29... Qc6 {[%clk 0:00:18.8]} 30. Qe2 {[%clk 0:01:09.2]}
30... d3 {[%clk 0:00:18.9]} 31. Rxd3 {[%clk 0:00:55.3]} 31... Nxd3 {[%clk
0:00:18.8]} 32. Bxd3 {[%clk 0:00:57.2]} 32... Rbd7 {[%clk 0:00:16.4]} 33. Be4
{[%clk 0:00:53.5]} 33... Qc1+ {[%clk 0:00:16.9]} 34. Kh2 {[%clk 0:00:54.1]}
34... Rd1 {[%clk 0:00:18.8]} 35. Kh3 {[%clk 0:00:49.4]} 35... Rh1+ {[%clk
0:00:18.5]} 36. Kg4 {[%clk 0:00:50.9]} 36... Qd1 {[%clk 0:00:20.4]} 37. Kf3
{[%clk 0:00:30]} 37... Qxe2+ {[%clk 0:00:19.6]} 38. Nxe2 {[%clk 0:00:31.6]}
38... Bxh4 {[%clk 0:00:18.2]} 39. Bf4 {[%clk 0:00:33.1]} 39... Be7 {[%clk
0:00:18.7]} 40. Nc3 {[%clk 0:00:31.5]} 40... Rb8 {[%clk 0:00:19.1]} 41. Na4
{[%clk 0:00:23.6]} 41... Ra1 {[%clk 0:00:19.8]} 42. Bc6 {[%clk 0:00:24.3]} 42...
Rb3+ {[%clk 0:00:20.8]} 43. Be3 {[%clk 0:00:22]} 43... Rb4 {[%clk 0:00:16.8]}
44. Nc3 {[%clk 0:00:20.5]} 44... Rxb2 {[%clk 0:00:17.7]} 45. Ne4 {[%clk
0:00:20.5]} 45... Rb3 {[%clk 0:00:17.5]} 46. g4 {[%clk 0:00:20.3]} 46... a4
{[%clk 0:00:18.8]} 47. Be8 {[%clk 0:00:21.9]} 47... a3 {[%clk 0:00:19.6]} 48.
Kg2 {[%clk 0:00:23.5]} 48... a2 {[%clk 0:00:20]} 49. Bg5 {[%clk 0:00:25.1]}
49... Bxg5 {[%clk 0:00:20.5]} 50. Nxg5 {[%clk 0:00:27]} 50... Rg1+ {[%clk
0:00:21.6]} 51. Kxg1 {[%clk 0:00:26.7]} 51... a1=Q+ {[%clk 0:00:23]} 52. Kg2
{[%clk 0:00:28.6]} 52... Rb7 {[%clk 0:00:23.8]} 53. Nxe6 {[%clk 0:00:29]} 53...
Qxe5 {[%clk 0:00:24.3]} 54. Bxf7+ {[%clk 0:00:28.3]} 54... Rxf7 {[%clk
0:00:24.9]} 55. f4 {[%clk 0:00:28.9]} 55... Qxe6 {[%clk 0:00:26]} 56. f5 {[%clk
0:00:30.3]} 56... Qe2+ {[%clk 0:00:26.6]} 57. Kg3 {[%clk 0:00:31.5]} 57... g5
{[%clk 0:00:28]} 58. f6 {[%clk 0:00:30.8]} 58... Rxf6 {[%clk 0:00:29.3]} 0-1

[Event "*** Titled Tuesday Blitz"]
[Site "Chess.com"]
[Date "2019.04.02"]
[Round "5"]
[White "moro182"]
[Black "Gahan-MG"]
[Result "1-0"]
[WhiteElo "2771"]
[BlackElo "2573"]
[TimeControl "180+2"]
[EndTime "15:04:59 PDT"]
[Termination "moro182 won by resignation"]

1. d4 {[%clk 0:03:01.9]} 1... Nf6 {[%clk 0:02:59.6]} 2. c4 {[%clk 0:03:03]} 2...
e5 {[%clk 0:03:00.5]} 3. dxe5 {[%clk 0:03:03.3]} 3... Ng4 {[%clk 0:03:01.9]} 4.
Nf3 {[%clk 0:03:04.5]} 4... Bc5 {[%clk 0:03:01.2]} 5. e3 {[%clk 0:03:05.3]} 5...
Nc6 {[%clk 0:03:02.7]} 6. Be2 {[%clk 0:03:06.6]} 6... Ngxe5 {[%clk 0:03:03.8]}
7. Nxe5 {[%clk 0:03:07.9]} 7... Nxe5 {[%clk 0:03:05.7]} 8. O-O {[%clk
0:03:08.2]} 8... O-O {[%clk 0:03:07.2]} 9. Nc3 {[%clk 0:03:07.8]} 9... Re8
{[%clk 0:03:08.5]} 10. b3 {[%clk 0:03:09]} 10... a5 {[%clk 0:03:09.5]} 11. Na4
{[%clk 0:03:08.3]} 11... Bf8 {[%clk 0:03:07.4]} 12. f4 {[%clk 0:03:09]} 12...
Nc6 {[%clk 0:03:03.7]} 13. Bf3 {[%clk 0:03:04.4]} 13... d6 {[%clk 0:02:55.9]}
14. e4 {[%clk 0:03:05]} 14... Qf6 {[%clk 0:02:52.7]} 15. Rb1 {[%clk 0:02:47.6]}
15... Qd4+ {[%clk 0:02:47.1]} 16. Qxd4 {[%clk 0:02:26.8]} 16... Nxd4 {[%clk
0:02:47.1]} 17. Bb2 {[%clk 0:02:28.7]} 17... Nxf3+ {[%clk 0:02:44.7]} 18. gxf3
{[%clk 0:02:30.6]} 18... Bd7 {[%clk 0:02:34.3]} 19. Nc3 {[%clk 0:02:30.1]} 19...
Bc6 {[%clk 0:02:21.9]} 20. Kf2 {[%clk 0:02:29.3]} 20... g6 {[%clk 0:02:19.7]}
21. Rg1 {[%clk 0:02:22.4]} 21... Bg7 {[%clk 0:02:19.2]} 22. Ne2 {[%clk
0:02:23.2]} 22... Bxb2 {[%clk 0:02:06.9]} 23. Rxb2 {[%clk 0:02:25.1]} 23... Bd7
{[%clk 0:02:02]} 24. f5 {[%clk 0:02:22.7]} 24... Kf8 {[%clk 0:01:59]} 25. fxg6
{[%clk 0:02:23.4]} 25... hxg6 {[%clk 0:02:00.9]} 26. Nf4 {[%clk 0:02:19.9]}
26... Re5 {[%clk 0:01:57.2]} 27. h4 {[%clk 0:02:17]} 27... b5 {[%clk 0:01:23.6]}
28. Rg5 {[%clk 0:01:51.5]} 28... bxc4 {[%clk 0:01:20.1]} 29. bxc4 {[%clk
0:01:51.3]} 29... Bc6 {[%clk 0:01:12.3]} 30. Ke3 {[%clk 0:01:42.7]} 30... a4
{[%clk 0:01:02.3]} 31. Rbg2 {[%clk 0:01:19.1]} 31... Rxg5 {[%clk 0:00:45.4]} 32.
hxg5 {[%clk 0:01:19.3]} 32... Rb8 {[%clk 0:00:43.6]} 33. Rc2 {[%clk 0:01:02.6]}
33... a3 {[%clk 0:00:42.1]} 34. Rc3 {[%clk 0:01:02.5]} 34... Ra8 {[%clk
0:00:31.6]} 35. c5 {[%clk 0:01:02]} 35... Bd7 {[%clk 0:00:24.7]} 36. cxd6 {[%clk
0:00:52.5]} 36... cxd6 {[%clk 0:00:25.7]} 37. Rc7 {[%clk 0:00:51.2]} 37... Be6
{[%clk 0:00:21.8]} 38. Nxe6+ {[%clk 0:00:51.7]} 38... fxe6 {[%clk 0:00:23.7]}
39. Kd4 {[%clk 0:00:46.5]} 39... Ra5 {[%clk 0:00:20.1]} 40. f4 {[%clk
0:00:47.2]} 40... e5+ {[%clk 0:00:18.9]} 41. Ke3 {[%clk 0:00:46.8]} 41... exf4+
{[%clk 0:00:18.7]} 42. Kxf4 {[%clk 0:00:48.7]} 42... Ra4 {[%clk 0:00:14.6]} 43.
Rd7 {[%clk 0:00:45.9]} 43... Rd4 {[%clk 0:00:11.9]} 44. Ra7 {[%clk 0:00:37]}
44... Rd3 {[%clk 0:00:12.2]} 45. e5 {[%clk 0:00:31.2]} 45... Rd4+ {[%clk
0:00:10.8]} 46. Kf3 {[%clk 0:00:27.6]} 46... dxe5 {[%clk 0:00:11.7]} 47. Rxa3
{[%clk 0:00:28.7]} 47... Rf4+ {[%clk 0:00:12.8]} 48. Kg3 {[%clk 0:00:29]} 48...
Rf5 {[%clk 0:00:13.6]} 49. Kg4 {[%clk 0:00:29.7]} 49... Rf4+ {[%clk 0:00:14.7]}
50. Kg3 {[%clk 0:00:29.5]} 50... Rf5 {[%clk 0:00:16.2]} 51. Rf3 {[%clk
0:00:30.1]} 51... e4 {[%clk 0:00:07.6]} 52. Rxf5+ {[%clk 0:00:26]} 52... gxf5
{[%clk 0:00:09.5]} 53. Kf4 {[%clk 0:00:24.5]} 53... Ke7 {[%clk 0:00:10.3]} 54.
a4 {[%clk 0:00:26.1]} 54... Kd6 {[%clk 0:00:10.7]} 55. g6 {[%clk 0:00:27]} 55...
Ke6 {[%clk 0:00:10.5]} 56. a5 {[%clk 0:00:28]} 56... Kf6 {[%clk 0:00:12.4]} 57.
a6 {[%clk 0:00:29.5]} 57... Kxg6 {[%clk 0:00:14.3]} 58. a7 {[%clk 0:00:31.1]}
1-0

[Event "*** Titled Tuesday Blitz"]
[Site "Chess.com"]
[Date "2019.04.02"]
[Round "5"]
[White "iLuusions"]
[Black "platy3"]
[Result "0-1"]
[WhiteElo "2621"]
[BlackElo "2783"]
[TimeControl "180+2"]
[EndTime "15:05:00 PDT"]
[Termination "platy3 won on time"]

1. d4 {[%clk 0:03:01.9]} 1... Nf6 {[%clk 0:03:00.4]} 2. c4 {[%clk 0:03:03.8]}
2... g6 {[%clk 0:02:59.6]} 3. Nf3 {[%clk 0:03:02.5]} 3... Bg7 {[%clk 0:03:00.8]}
4. g3 {[%clk 0:03:04.4]} 4... O-O {[%clk 0:03:02]} 5. Bg2 {[%clk 0:03:06.3]}
5... d6 {[%clk 0:03:02.8]} 6. O-O {[%clk 0:03:08.2]} 6... Nc6 {[%clk 0:03:03.9]}
7. Nc3 {[%clk 0:03:10.1]} 7... e5 {[%clk 0:03:04.9]} 8. dxe5 {[%clk 0:02:55.6]}
8... dxe5 {[%clk 0:03:05.6]} 9. Qxd8 {[%clk 0:02:55.3]} 9... Rxd8 {[%clk
0:03:06]} 10. Bg5 {[%clk 0:02:57.2]} 10... Be6 {[%clk 0:03:00]} 11. Nd2 {[%clk
0:02:52.5]} 11... h6 {[%clk 0:03:00.9]} 12. Bxf6 {[%clk 0:02:52.2]} 12... Rxd2
{[%clk 0:03:00.8]} 13. Bxg7 {[%clk 0:02:52.5]} 13... Kxg7 {[%clk 0:03:02.7]} 14.
b3 {[%clk 0:02:52.1]} 14... f5 {[%clk 0:03:00.9]} 15. Bxc6 {[%clk 0:02:51.9]}
15... bxc6 {[%clk 0:03:01.6]} 16. Rfd1 {[%clk 0:02:53]} 16... Rad8 {[%clk
0:03:01.4]} 17. Kf1 {[%clk 0:02:52.6]} 17... R8d4 {[%clk 0:02:49.7]} 18. Ke1
{[%clk 0:02:23.2]} 18... Rxd1+ {[%clk 0:02:34.1]} 19. Rxd1 {[%clk 0:02:23.1]}
19... Rxd1+ {[%clk 0:02:35.4]} 20. Kxd1 {[%clk 0:02:23.9]} 20... Kf6 {[%clk
0:02:37.1]} 21. f3 {[%clk 0:02:13.2]} 21... Ke7 {[%clk 0:02:31.4]} 22. Kd2
{[%clk 0:02:13.9]} 22... Kd6 {[%clk 0:02:32.1]} 23. Kd3 {[%clk 0:02:10.8]} 23...
Kc5 {[%clk 0:02:31.9]} 24. a3 {[%clk 0:02:12.2]} 24... a5 {[%clk 0:02:27.2]} 25.
Na4+ {[%clk 0:02:06.8]} 25... Kd6 {[%clk 0:02:28.2]} 26. Kc3 {[%clk 0:02:03.4]}
26... g5 {[%clk 0:02:25.7]} 27. e3 {[%clk 0:02:02.4]} 27... h5 {[%clk
0:02:24.9]} 28. b4 {[%clk 0:01:43.3]} 28... axb4+ {[%clk 0:02:25]} 29. Kxb4
{[%clk 0:01:45.2]} 29... f4 {[%clk 0:02:17.2]} 30. gxf4 {[%clk 0:01:38.2]} 30...
exf4 {[%clk 0:02:14.3]} 31. exf4 {[%clk 0:01:38.5]} 31... gxf4 {[%clk
0:02:14.8]} 32. Nc3 {[%clk 0:01:34.6]} 32... c5+ {[%clk 0:02:02.8]} 33. Kb3
{[%clk 0:01:35.3]} 33... Ke5 {[%clk 0:02:00.2]} 34. a4 {[%clk 0:01:07.1]} 34...
Kd4 {[%clk 0:01:57.7]} 35. Nb5+ {[%clk 0:01:07.1]} 35... Kd3 {[%clk 0:01:58.1]}
36. Nxc7 {[%clk 0:01:00.5]} 36... Bxc4+ {[%clk 0:01:58.6]} 37. Kb2 {[%clk
0:01:02]} 37... Ke3 {[%clk 0:01:36.9]} 38. Kc3 {[%clk 0:01:01.3]} 38... Bf1
{[%clk 0:01:37.9]} 39. Ne6 {[%clk 0:00:58.8]} 39... Kxf3 {[%clk 0:01:36.3]} 40.
Kd2 {[%clk 0:00:57.8]} 40... c4 {[%clk 0:01:15.9]} 41. a5 {[%clk 0:00:53.2]}
41... h4 {[%clk 0:01:15.4]} 42. Ke1 {[%clk 0:00:39]} 42... Bd3 {[%clk
0:00:56.4]} 43. a6 {[%clk 0:00:39.8]} 43... Ke3 {[%clk 0:00:47.9]} 44. Nc5
{[%clk 0:00:27.3]} 44... Be2 {[%clk 0:00:49]} 45. Ne4 {[%clk 0:00:22.3]} 45...
Bf3 {[%clk 0:00:44.9]} 46. Nc3 {[%clk 0:00:12.4]} 46... Kd3 {[%clk 0:00:32.8]}
47. Na2 {[%clk 0:00:04.4]} 47... c3 {[%clk 0:00:29.7]} 48. a7 {[%clk 0:00:05.4]}
48... Bb7 {[%clk 0:00:21.7]} 49. Kd1 {[%clk 0:00:05.4]} 49... f3 {[%clk
0:00:21.9]} 50. Nb4+ {[%clk 0:00:04.4]} 50... Ke3 {[%clk 0:00:22.1]} 0-1

[Event "*** Titled Tuesday Blitz"]
[Site "Chess.com"]
[Date "2019.04.02"]
[Round "5"]
[White "FrenchMonster2002"]
[Black "Phurba13"]
[Result "1-0"]
[WhiteElo "2350"]
[BlackElo "2234"]
[TimeControl "180+2"]
[EndTime "15:05:03 PDT"]
[Termination "FrenchMonster2002 won by checkmate"]

1. e4 {[%clk 0:03:01.9]} 1... e5 {[%clk 0:03:01.3]} 2. Nf3 {[%clk 0:03:01.8]}
2... Nc6 {[%clk 0:03:02.5]} 3. d4 {[%clk 0:03:02.3]} 3... exd4 {[%clk
0:03:04.4]} 4. Nxd4 {[%clk 0:03:01.2]} 4... Bc5 {[%clk 0:03:05.6]} 5. Nb3 {[%clk
0:03:02.1]} 5... Bb6 {[%clk 0:03:06.1]} 6. Nc3 {[%clk 0:03:03.6]} 6... Nf6
{[%clk 0:03:05.9]} 7. Qe2 {[%clk 0:03:04.8]} 7... O-O {[%clk 0:03:06.3]} 8. Bg5
{[%clk 0:03:05.7]} 8... h6 {[%clk 0:02:52.4]} 9. h4 {[%clk 0:02:54]} 9... Re8
{[%clk 0:02:11.5]} 10. O-O-O {[%clk 0:02:44.3]} 10... d6 {[%clk 0:01:48.8]} 11.
f4 {[%clk 0:01:36.2]} 11... Bg4 {[%clk 0:01:35.2]} 12. Qc4 {[%clk 0:00:44]}
12... Bxd1 {[%clk 0:00:59]} 13. Kxd1 {[%clk 0:00:45.9]} 13... hxg5 {[%clk
0:00:49.1]} 14. hxg5 {[%clk 0:00:47.1]} 14... Nxe4 {[%clk 0:00:50.5]} 15. Nxe4
{[%clk 0:00:13.5]} 15... d5 {[%clk 0:00:51.8]} 16. Nf6+ {[%clk 0:00:13.8]} 16...
Qxf6 {[%clk 0:00:52.5]} 17. Qd3 {[%clk 0:00:11.4]} 17... Qg6 {[%clk 0:00:43.8]}
18. Qh3 {[%clk 0:00:12.1]} 18... Kf8 {[%clk 0:00:36.9]} 19. Bd3 {[%clk
0:00:10.7]} 19... Qd6 {[%clk 0:00:18.4]} 20. Qh8+ {[%clk 0:00:05.1]} 20... Ke7
{[%clk 0:00:19.3]} 21. Qxg7 {[%clk 0:00:06.2]} 21... Rf8 {[%clk 0:00:09.6]} 22.
g6 {[%clk 0:00:03.4]} 22... Rae8 {[%clk 0:00:09.9]} 23. gxf7 {[%clk 0:00:03.2]}
23... Rd8 {[%clk 0:00:09.9]} 24. Re1+ {[%clk 0:00:02.8]} 24... Qe6 {[%clk
0:00:10]} 25. Rxe6+ {[%clk 0:00:03.9]} 25... Kxe6 {[%clk 0:00:11.9]} 26. f5+
{[%clk 0:00:04.6]} 26... Kd7 {[%clk 0:00:13.2]} 27. g4 {[%clk 0:00:04.2]} 27...
Ne7 {[%clk 0:00:14.6]} 28. g5 {[%clk 0:00:04.5]} 28... c5 {[%clk 0:00:14.9]} 29.
f6 {[%clk 0:00:05.7]} 29... Nc6 {[%clk 0:00:16.1]} 30. Bf5+ {[%clk 0:00:06.7]}
30... Kc7 {[%clk 0:00:17.2]} 31. g6 {[%clk 0:00:07.8]} 31... Ne5 {[%clk
0:00:18.6]} 32. Qh6 {[%clk 0:00:07.3]} 32... c4 {[%clk 0:00:20.1]} 33. Nd2
{[%clk 0:00:07.6]} 33... Nxf7 {[%clk 0:00:21.6]} 34. gxf7 {[%clk 0:00:08.6]}
34... Rxf7 {[%clk 0:00:23.5]} 35. Be6 {[%clk 0:00:09.4]} 35... Rdf8 {[%clk
0:00:25.4]} 36. Bxf7 {[%clk 0:00:10.5]} 36... Rxf7 {[%clk 0:00:27.3]} 37. Qg6
{[%clk 0:00:12.2]} 37... Rd7 {[%clk 0:00:28.3]} 38. f7 {[%clk 0:00:13.3]} 38...
Bc5 {[%clk 0:00:30.2]} 39. Qg8 {[%clk 0:00:13]} 39... Rd8 {[%clk 0:00:30.9]} 40.
Qg3+ {[%clk 0:00:13.1]} 40... Bd6 {[%clk 0:00:30.7]} 41. Qg6 {[%clk 0:00:12.5]}
41... Rf8 {[%clk 0:00:31.7]} 42. Nf3 {[%clk 0:00:13.6]} 42... b5 {[%clk
0:00:32.3]} 43. Ng5 {[%clk 0:00:14.8]} 43... Rh8 {[%clk 0:00:29.6]} 44. Nh7
{[%clk 0:00:13.8]} 44... Rd8 {[%clk 0:00:28.7]} 45. Qg7 {[%clk 0:00:13.5]} 45...
c3 {[%clk 0:00:22.7]} 46. Qxc3+ {[%clk 0:00:11.8]} 46... Kb7 {[%clk 0:00:19.1]}
47. f8=Q {[%clk 0:00:08.7]} 47... Bxf8 {[%clk 0:00:18.7]} 48. Nxf8 {[%clk
0:00:10.6]} 48... Rxf8 {[%clk 0:00:20.6]} 49. Qg7+ {[%clk 0:00:11.9]} 49... Kb6
{[%clk 0:00:22.1]} 50. Qxf8 {[%clk 0:00:13.8]} 50... Ka5 {[%clk 0:00:24]} 51.
Qc5 {[%clk 0:00:13.9]} 51... a6 {[%clk 0:00:24.9]} 52. Qxd5 {[%clk 0:00:13.4]}
52... Kb4 {[%clk 0:00:23.9]} 53. Qd4+ {[%clk 0:00:12.7]} 53... Ka5 {[%clk
0:00:25]} 54. c3 {[%clk 0:00:11.8]} 54... b4 {[%clk 0:00:23.2]} 55. Qc5+ {[%clk
0:00:13.3]} 55... Ka4 {[%clk 0:00:23.5]} 56. Qxb4# {[%clk 0:00:15.2]} 1-0